Cogmind - Beta 16 @@@ ROGUE MODE // 2025.11.25 @ 01:41:54 Player: Maxfecteau Result: Destroyed by Decapitator with Experimental Terror Saw Performance ------------- Evolutions (7) 3500 Regions Visited (15) 3000 Robots Destroyed (36) 180 Value Destroyed (999) 999 Prototype IDs (29) 580 Alien Tech Used (4) 800 Bonus (5411) 5411 TOTAL SCORE: 14470 Bonus ------- Follower Combat Kills 111 Registered with UFD 300 Met Optimus in HQ 500 Met Warlord at Base 500 MAIN.C Attacked Warlord 500 Used Core Reset Matrix 3000 Scanned by Researcher 500 Cogmind --------- Core Integrity 0/1300 Matter 151/300 Energy 87/100 System Corruption 21% Temperature Cool (4) Movement Hovering (40) Location -3/Protoforge Parts ------- > --- POWER (2) -------- (None) > --- PROPULSION (6) --- Gravjet Array > --- UTILITY (10) ----- (None) > --- WEAPON (3) ------- (None) > --- INVENTORY (5) ---- Hybrid Graviton Reactor Hybrid Graviton Reactor Sigix Corpse Sigix Corpse Peak State ------------ > --- POWER ------------ Hybrid Graviton Reactor Hybrid Graviton Reactor > --- PROPULSION ------- Gravjet Array Gravjet Array Gravjet Array > --- UTILITY ---------- Advanced Sensor Array Advanced Signal Interpreter Surveybot 17 Chip Improved Melee Analysis Suite Concept Projectile Intercept Suite Experimental Launcher Guidance Computer Makeshift Transmission Jammer Jamming Amplifier Improved Phase Shifter Improved Hacking Suite > --- WEAPON ----------- Heavy Gauss Cannon Improved Datajack Phasing Sabre > --- INVENTORY -------- Hybrid Graviton Reactor Hybrid Graviton Reactor Sigix Corpse Sigix Corpse [Rating: 163] Favorites ----------- Power Ion Engine Engine Ion Engine Power Core Micro Fission Core Reactor Hybrid Graviton Reactor Propulsion Light Treads Treads Light Treads Leg Improved Titanium Leg Wheel Armored Huge Wheel Hover Unit Backup Propulsion III Flight Unit VTOL Module Utility Makeshift Light Armor Plating Device Experimental Terrain Scanner Storage Medium Storage Unit Processor Surveybot 17 Chip Hackware Improved Hacking Suite Protection Makeshift Light Armor Plating Weapon Improved Datajack Energy Gun Riot Gun Energy Cannon Subdweller Beam Cannon Ballistic Gun Flak Gun Ballistic Cannon Enhanced Gauss Cannon Launcher Vortex Catalyst Activator Impact Weapon Powered Hammer Slashing Weapon Power Sword Special Melee Weapon Improved Datajack Build | -11 -10 -10 -7 -7 -5 -5 -5 -5 -5 -5 -4 -4 -3 -3 -3 ------- Run | Yrd Mat Sub Rec Scr Fac Was Fac Upp Upp War Pro Fac Res Qua Frg Slots Evolved 14 | . . . . . 10 . . . . . . 2 2 . . Power 1 | . . . . . 1 . . . . . . . . . . Propulsion 4 | . . . . . 3 . . . . . . 1 . . . Utility 8 | . . . . . 5 . . . . . . 1 2 . . Weapon 1 | . . . . . 1 . . . . . . . . . . Parts Attached 108 | 9 . 8 10 16 7 2 9 . 7 14 . 6 2 8 10 Power 10 | 1 . 1 1 1 1 . 1 . . 1 . . . 1 2 Engine 7 | 1 . 1 1 1 1 . . . . 1 . . . 1 . Core 1 | . . . . . . . 1 . . . . . . . . Reactor 2 | . . . . . . . . . . . . . . . 2 Propulsion 24 | 2 . 1 1 3 1 1 4 . . 5 . . 1 2 3 Treads 5 | 2 . 1 1 1 . . . . . . . . . . . Leg 2 | . . . . 2 . . . . . . . . . . . Wheel 1 | . . . . . 1 . . . . . . . . . . Hover 3 | . . . . . . . . . . . . . . . 3 Flight 13 | . . . . . . 1 4 . . 5 . . 1 2 . Utility 45 | 4 . 1 3 6 4 . 4 . 6 2 . 6 1 3 5 Device 20 | 3 . . 1 4 2 . 3 . 2 1 . 2 . 1 1 Storage 3 | 1 . . 1 1 . . . . . . . . . . . Processor 15 | . . . . 1 2 . . . 4 1 . 2 . 1 4 Hackware 4 | . . . . . . . 1 . . . . 1 1 1 . Protection 3 | . . 1 1 . . . . . . . . 1 . . . Artifact . | . . . . . . . . . . . . . . . . Weapon 29 | 2 . 5 5 6 1 1 . . 1 6 . . . 2 . Energy Gun 5 | 1 . 2 . 1 1 . . . . . . . . . . Energy Cannon 6 | . . 1 . 2 . . . . . 3 . . . . . Ballistic Gun 3 | 1 . . 2 . . . . . . . . . . . . Ballistic Cannon 4 | . . 1 1 . . 1 . . 1 . . . . . . Launcher 2 | . . . . . . . . . . 1 . . . 1 . Special Weapon . | . . . . . . . . . . . . . . . . Impact Weapon 2 | . . . 1 1 . . . . . . . . . . . Slashing Weapon 4 | . . . . 2 . . . . . 2 . . . . . Piercing Weapon . | . . . . . . . . . . . . . . . . Special Melee Weapon 3 | . . 1 1 . . . . . . . . . . 1 . Unidentified Prototypes 13 | . . . . . . . 1 . . 2 . . . 6 4 Parts Lost 48 | . . 7 1 . . 3 10 . 2 . . 1 2 3 19 Power 6 | . . 1 1 . . 1 . . . . . . . 1 2 Propulsion 16 | . . 2 . . . 1 4 . 1 . . . 2 1 5 Utility 18 | . . 2 . . . . 5 . 1 . . . . 1 9 Weapon 8 | . . 2 . . . 1 1 . . . . 1 . . 3 Highest Loss Streak 12 | . . 2 1 . . 3 9 . 1 . . 1 2 2 12 To Critical Strikes . | . . . . . . . . . . . . . . . . Average Backups 6 | 2 4 4 8 9 8 7 4 3 4 4 5 5 5 3 2 Power . | . 1 1 . . . . . 1 1 1 1 . . . . Propulsion . | . . . . . . . . . . . . . . . . Utility 3 | . 2 2 4 5 5 4 2 1 . 1 2 2 3 2 . Weapon 2 | 1 1 . 3 3 2 1 . 1 2 2 2 2 2 1 . Tool/Special . | . . . . . . . . . . . . . . . . Unused Backups 23 | . . 2 . 8 1 5 2 . . 1 . . . 2 2 Power 2 | . . . . . . . . . . . . . . . 2 Propulsion . | . . . . . . . . . . . . . . . . Utility 15 | . . 1 . 6 1 4 2 . . . . . . 1 . Weapon 6 | . . 1 . 2 . 1 . . . 1 . . . 1 . Tool/Special . | . . . . . . . . . . . . . . . . Average Slot Usage (%) 85 | . 100 88 88 94 83 72 69 23 25 60 94 85 87 86 60 Engine 10 | . 14 13 13 10 10 8 3 . . 7 . 1 4 4 1 Treads 19 | . 28 27 18 27 10 5 . . . . . . . . . Flight 2 | . . . . . . 1 9 5 3 3 29 26 27 21 7 Device 5 | . 28 9 . . 15 17 16 . 3 1 5 5 9 10 9 Storage 6 | . . . 13 13 5 2 . . . . . . . . . Processor 4 | . . . . . 9 11 10 5 13 29 35 28 19 19 19 Hackware 1 | . . . . . . . 4 . . . . 1 7 10 7 Protection 8 | . . 8 13 13 5 2 . . . . . 2 4 3 . Energy Gun 7 | . 14 17 . 4 10 7 3 . . 1 . . . . . Energy Cannon 2 | . . 8 . . . . . . . 1 . . . . . Ballistic Gun 4 | . 14 . 6 10 . . . . . . . . . . . Ballistic Cannon 1 | . . 1 12 . . 1 4 . . . . . . . . Slashing Weapon 2 | . . . . 1 5 5 5 5 . 5 17 11 9 9 3 Special Melee Weapon 3 | . . . 2 10 . . . . . . . . . . . Peak Build Rating 163 | 9 9 15 23 29 73 73 89 27 46 73 72 79 82 110 163 Average Rating 32 | 4 9 10 17 23 69 66 74 27 29 51 72 70 79 93 97 On Entrance 43 | . 9 9 8 23 29 73 71 27 27 32 72 72 70 78 96 Avg Prop Armor Cover (%) 5 | . . . . 11 12 9 4 . . 4 . . 2 4 6 Naked Turns 47 | . . . . 47 . . . . . . . . . . . Heaviest Build 45 | 11 10 34 27 39 45 44 32 8 8 20 20 23 23 26 45 Greatest Support 90 | 40 40 40 48 50 50 28 28 8 8 21 21 26 34 40 90 Greatest Overweight (x) 6 | . . 1 1 6 1 1 1 . 1 2 . . . . 1 Average Overweight (x) . | . . . . . . . . . . . . . . . . Largest Inventory Capacity 10 | 8 5 5 10 10 10 10 5 5 5 5 5 5 5 5 5 Average Capacity 7 | 5 5 5 9 9 10 7 5 5 5 5 5 5 5 5 5 Most Carried 10 | 4 4 5 10 10 10 10 5 3 5 5 5 5 5 5 5 Average Carried 7 | 2 4 4 8 9 8 6 4 3 4 4 5 4 5 4 4 Final Capacity 10 | 5 5 5 10 10 10 5 5 5 5 5 5 5 5 5 5 Final Carried 10 | 4 4 5 10 10 10 5 3 3 5 5 5 5 5 5 4 Class Distribution -------------------- 39% | Mutant 38% | Commander-Mutant 5% | Scavenger-Sprinter 4% | Assassin 3% | Derelict-Assassin Dominant Class ---------------- Mutant | -10/Materials Mutant | -10/Subcaves Mutant | -7/Recycling Commander-Mutant | -7/Scraptown Derelict-Assassin | -5/Factory Assassin | -5/Waste Assassin | -5/Factory Mutant | -5/Upper Caves Mutant | -5/Upper Caves Mutant | -5/Warlord Scavenger-Sprinter | -4/Proximity Caves Scavenger-Sprinter | -4/Factory Scavenger-Sprinter | -3/Research Hacker-Sprinter | -3/Quarantine Mutant | -3/Protoforge Resources | -11 -10 -10 -7 -7 -5 -5 -5 -5 -5 -5 -4 -4 -3 -3 -3 ----------- Run | Yrd Mat Sub Rec Scr Fac Was Fac Upp Upp War Pro Fac Res Qua Frg Matter Collected 2033 | 301 . 217 320 360 . . 359 17 111 188 . 10 . 24 126 Remotely . | . . . . . . . . . . . . . . . . Salvage Created 1399 | 158 . 552 95 . . . 359 . . . . 19 . 93 123 Parts 85 | 12 . 33 1 . . . 19 . . . . 1 . 9 10 Haulers Intercepted . | . . . . . . . . . . . . . . . . Recyclers Shooed 2 | 1 . . . . . . 1 . . . . . . . . Parts Field Recycled . | . . . . . . . . . . . . . . . . Retrieved Matter . | . . . . . . . . . . . . . . . . Parts Self-Destructed 15 | . . 15 . . . . . . . . . . . . . Prevented 1 | . . . . . . . . 1 . . . . . . . Parts Restored . | . . . . . . . . . . . . . . . . Kills | -11 -10 -10 -7 -7 -5 -5 -5 -5 -5 -5 -4 -4 -3 -3 -3 ------- Run | Yrd Mat Sub Rec Scr Fac Was Fac Upp Upp War Pro Fac Res Qua Frg Combat Hostiles Destroyed 17 | . . 14 2 . . . . . . . . . . 1 . Melee 1 | . . . . . . . . . . . . . . 1 . Guns 6 | . . 6 . . . . . . . . . . . . . Cannons 10 | . . 8 2 . . . . . . . . . . . . Classes Destroyed 12 | 2 . 3 2 . . . 2 . . . . 1 . 1 1 Worker 2 | . . . . . . . 2 . . . . . . . . Builder 1 | . . . . . . . 1 . . . . . . . . Tunneler 6 | 4 . . . . . . 2 . . . . . . . . Recycler 3 | 1 . . . . . . 2 . . . . . . . . Operator 3 | . . . . . . . . . . . . 1 . 1 1 Turret 2 | . . 2 . . . . . . . . . . . . . Swarmer 5 | . . 5 . . . . . . . . . . . . . Grunt 1 | . . . . . . . . . . . . . . 1 . Duelist 1 | . . . 1 . . . . . . . . . . . . Researcher 2 | . . . . . . . . . . . . . . . 2 Demolisher 1 | . . . 1 . . . . . . . . . . . . Subdweller 9 | . . 9 . . . . . . . . . . . . . Best Kill Streak 3 | 1 . 2 2 . . . 3 . . . . 1 . 2 1 Combat Bots Only 2 | . . 2 2 . . . . . . . . . . 1 . Max Kills in Single Turn 1 | 1 . 1 1 . . . 1 . . . . 1 . 1 1 Gunslinging . | . . . . . . . . . . . . . . . . Exploded . | . . . . . . . . . . . . . . . . Melee 1 | . . . . . . . . . . . . . . 1 . Uniques/NPCs Destroyed . | . . . . . . . . . . . . . . . . Combat | -11 -10 -10 -7 -7 -5 -5 -5 -5 -5 -5 -4 -4 -3 -3 -3 -------- Run | Yrd Mat Sub Rec Scr Fac Was Fac Upp Upp War Pro Fac Res Qua Frg Hostile Shots Fired 556 | . . 187 6 . . 4 72 3 21 5 3 16 30 20 189 Missed 235 | . . 62 . . . 1 39 1 7 3 2 14 14 11 81 Deflected 2 | . . . . . . . . . . . . . . . 2 Hits 321 | . . 125 6 . . 3 33 2 14 2 1 2 16 9 108 Melee 25 | . . . . . . 3 . . . . . . . . 22 Projectile 296 | . . 125 6 . . . 33 2 14 2 1 2 16 9 86 AOE 7 | . . . 3 . . . 3 . . . . . . . 1 Critical Strikes 29 | . . 1 . . . 2 2 . . . . . 1 1 22 Part Disruptions 1 | . . . . . . . 1 . . . . . . . . Damage Taken 6797 | . . 1444 138 . . 132 1203 37 213 76 45 47 346 234 2882 Core 2136 | . . 158 16 . . . 404 18 147 21 21 24 123 39 1165 Absorbed by Shields 39 | . . . . . . . . . . . . . . . 39 Regen/Repaired (Parts) 174 | . . . . . 118 . 34 . . 22 . . . . . Core Remaining (%) 66 | 100 . . . 30 . . . . . . 38 97 . . . Volleys Fired 119 | 23 . 90 4 . . . . . . . . . . . 2 Largest 2 | 2 . 2 2 . . . . . . . . . . . 1 Hottest 130 | 70 . 130 61 . . . . . . . . . . . 51 Shots Fired 175 | 36 . 130 7 . . . . . . . . . . . 2 Gun 98 | 36 . 59 3 . . . . . . . . . . . . Cannon 77 | . . 71 4 . . . . . . . . . . . 2 Launcher . | . . . . . . . . . . . . . . . . Special . | . . . . . . . . . . . . . . . . Kinetic 43 | 23 . 11 7 . . . . . . . . . . . 2 Thermal 92 | 13 . 79 . . . . . . . . . . . . . Explosive . | . . . . . . . . . . . . . . . . Electromagnetic 40 | . . 40 . . . . . . . . . . . . . Robot Hit Streak 21 | 10 . 21 7 . . . . . . . . . . . . Robot Miss Streak 5 | 3 . 5 3 . . . . . . . . . . . . Penetration Max . | . . . . . . . . . . . . . . . . Secondary Targets 1 | . . 1 . . . . . . . . . . . . . Max Gunslinging Chain 1 | . . 1 . . . . . . . . . . . . . Shots Hit Robots 162 | 28 . 85 23 1 . . 12 . . . . 1 3 4 5 Core Hits 53 | 9 . 31 4 . . . 5 . . . . . . 3 1 Critical Kills . | . . . . . . . . . . . . . . . . Critical Parts Destroyed . | . . . . . . . . . . . . . . . . Critical Strikes 5 | . . 3 . . . . . . . . . . 1 1 . Burn 3 | . . 3 . . . . . . . . . . . . . Sever 2 | . . . . . . . . . . . . . 1 1 . Melee Attacks 125 | . . . 21 1 2 . 37 . . . 7 10 10 20 17 Impact 3 | . . . 3 . . . . . . . . . . . . Slashing 103 | . . . . . 2 . 37 . . . 7 10 10 20 17 Piercing . | . . . . . . . . . . . . . . . . Sneak Attacks 28 | . . . 16 1 . . 7 . . . . 1 . 1 2 Combat Hostiles . | . . . . . . . . . . . . . . . . Follow-up Attacks 3 | . . . . . . . . . . . . 1 1 1 . Damage Inflicted 3681 | 254 . 1662 131 . . . 803 . . . . 98 135 218 380 Guns 924 | 254 . 626 44 . . . . . . . . . . . . Cannons 1061 | . . 974 87 . . . . . . . . . . . . Explosions 62 | . . 62 . . . . . . . . . . . . . Melee 1634 | . . . . . . . 803 . . . . 98 135 218 380 Ramming . | . . . . . . . . . . . . . . . . Kinetic 370 | 141 . 98 131 . . . . . . . . . . . . Thermal 1227 | 113 . 1114 . . . . . . . . . . . . . Explosive . | . . . . . . . . . . . . . . . . Electromagnetic 450 | . . 450 . . . . . . . . . . . . . Impact . | . . . . . . . . . . . . . . . . Slashing 1634 | . . . . . . . 803 . . . . 98 135 218 380 Piercing . | . . . . . . . . . . . . . . . . Highest Corruption 25 | . . . . . . 18 25 25 25 25 . . . . 21 Average Corruption 14 | . . . . . . 10 14 25 25 25 . . . . 6 Corruption Purged 5 | . . . . . . . 5 . . . . . . . . Corruption Blocked . | . . . . . . . . . . . . . . . . Effects 67 | . . . . . . 4 36 3 12 1 . . . . 11 Message Errors 18 | . . . . . . 1 11 . 2 1 . . . . 3 Matter Fused 20 | . . . . . . 2 9 1 6 . . . . . 2 Heat Flow Errors 7 | . . . . . . . 6 . . . . . . . 1 Energy Discharges 8 | . . . . . . . 4 1 1 . . . . . 2 Parts Rejected 2 | . . . . . . . 1 . . . . . . . 1 Data Loss (minor) 5 | . . . . . . 1 2 . 2 . . . . . . Data Loss (major) 2 | . . . . . . . 1 . 1 . . . . . . Alerts 2 | . . . . . . . . 1 . . . . . . 1 Misdirections 3 | . . . . . . . 2 . . . . . . . 1 Overload Shots . | . . . . . . . . . . . . . . . . Overflow Damage 503 | . . 29 . . . . 281 . . . . 68 . . 125 Projectiles 29 | . . 29 . . . . . . . . . . . . . Explosions . | . . . . . . . . . . . . . . . . Melee 474 | . . . . . . . 281 . . . . 68 . . 125 Knockbacks 4 | . . 3 1 . . . . . . . . . . . . Impact . | . . . . . . . . . . . . . . . . Kinetic 4 | . . 3 1 . . . . . . . . . . . . Secondary . | . . . . . . . . . . . . . . . . Self-Inflicted Damage . | . . . . . . . . . . . . . . . . Shots . | . . . . . . . . . . . . . . . . Rammed . | . . . . . . . . . . . . . . . . Targets Rammed . | . . . . . . . . . . . . . . . . Kicked . | . . . . . . . . . . . . . . . . Crushed . | . . . . . . . . . . . . . . . . Highest Temperature 355 | 60 . 114 27 . . . 203 . . 2 . 1 15 355 299 Average Temperature 44 | 26 . 38 16 . . . 86 . . 2 . 1 7 182 137 Received Heat Transfer 1831 | . . 468 36 . . . 57 18 24 18 . . 39 475 696 Effects 1 | . . . . . . . . . . . . . . . 1 Interference 1 | . . . . . . . . . . . . . . . 1 Siege Activations . | . . . . . . . . . . . . . . . . Martial Activations . | . . . . . . . . . . . . . . . . Shielding Activations . | . . . . . . . . . . . . . . . . Robots Disrupted . | . . . . . . . . . . . . . . . . Combat Hostiles . | . . . . . . . . . . . . . . . . Robots Corrupted . | . . . . . . . . . . . . . . . . Combat Hostiles . | . . . . . . . . . . . . . . . . Parts Fried 3 | . . 3 . . . . . . . . . . . . . Impact Corruptions . | . . . . . . . . . . . . . . . . Robots Melted . | . . . . . . . . . . . . . . . . Combat Hostiles . | . . . . . . . . . . . . . . . . Parts Melted 5 | 1 . 4 . . . . . . . . . . . . . Heat Transferred 2307 | 333 . 1974 . . . . . . . . . . . . . Parts Sabotaged . | . . . . . . . . . . . . . . . . Parts Stolen . | . . . . . . . . . . . . . . . . Parts Stripped . | . . . . . . . . . . . . . . . . Power Chain Reactions 1 | . . 1 . . . . . . . . . . . . . Alert | -11 -10 -10 -7 -7 -5 -5 -5 -5 -5 -5 -4 -4 -3 -3 -3 ------- Run | Yrd Mat Sub Rec Scr Fac Was Fac Upp Upp War Pro Fac Res Qua Frg Maximum Alert Level 1 | . . . . . . . . . . . . . . . 1 Low Security (%) 94 | 100 100 . 100 . 100 100 100 . . . . 100 100 100 56 Level 1 5 | . . . . . . . . . . . . . . . 43 Level 2 . | . . . . . . . . . . . . . . . . Level 3 . | . . . . . . . . . . . . . . . . Level 4 . | . . . . . . . . . . . . . . . . Level 5 . | . . . . . . . . . . . . . . . . High Security . | . . . . . . . . . . . . . . . . Max Security . | . . . . . . . . . . . . . . . . Peak Influence 323 | 5 . . 117 . 141 . 89 . . . . 82 33 64 323 Initial 117 | . . . 117 . . . . . . . . . 23 . . Average 38 | 1 . . 22 . 42 . 25 . . . . 11 4 13 175 Influence Increases 2162 | 25 . 345 65 . 203 . 310 120 60 . . 142 46 173 673 Destroy 0b10 Robot/C 320 | . . 140 40 . 80 . . . . . . . . 20 40 Destroy 0b10 Robot/NC 75 | 25 . . . . . . 35 . . . . 5 . 5 5 Destroy Leader 20 | . . 10 . . 10 . . . . . . . . . . Allied During Kill 16 | . . . . . 16 . . . . . . . . . . Trap Triggered on 0b10 10 | . . . . . . . . . . . . . . . 10 Successful Hack 226 | . . . 23 . . . . . . . . 58 10 35 100 Disable Machine 165 | . . . . . 45 . 15 . . . . 15 . 75 15 Destroy Structure 100 | . . . 2 . 52 . 20 . . . . 4 6 8 8 Partial Spotted 105 | . . . . . . . 15 . . . . 30 30 . 30 Lose Combat Pursuer 1125 | . . 195 . . . . 225 120 60 . . 30 . 30 465 Influence Decreases 1899 | 25 . 99 311 . 203 . 266 57 141 26 . 97 91 173 410 Entered New Map 215 | . . . 129 . . . . 17 21 26 . . 22 . . Time Decay 1116 | 25 . 49 182 . 163 . 167 40 100 . . 12 69 89 220 Lost Part 374 | . . 50 . . . . 99 . 20 . . 5 . 10 190 Lost Ally 40 | . . . . . 40 . . . . . . . . . . Purge Threat 154 | . . . . . . . . . . . . 80 . 74 . Squads Dispatched 26 | . . . . . 2 . 7 . . . . 2 5 2 8 Investigation 10 | . . . . . 1 . 2 . . . . 1 1 1 4 Extermination 5 | . . . . . 1 . 1 . . . . . 1 1 1 Reinforcement 7 | . . . . . . . 2 . . . . 1 1 . 3 Assault 4 | . . . . . . . 2 . . . . . 2 . . Garrison . | . . . . . . . . . . . . . . . . Intercept . | . . . . . . . . . . . . . . . . Searches Triggered . | . . . . . . . . . . . . . . . . Construction Impeded 1 | . . . . . . . 1 . . . . . . . . Haulers Reinforced . | . . . . . . . . . . . . . . . . Active Scanning Responses . | . . . . . . . . . . . . . . . . Cargo Convoy Interrupts . | . . . . . . . . . . . . . . . . Stealth | -11 -10 -10 -7 -7 -5 -5 -5 -5 -5 -5 -4 -4 -3 -3 -3 --------- Run | Yrd Mat Sub Rec Scr Fac Was Fac Upp Upp War Pro Fac Res Qua Frg Distress Signals 4 | . . . . . . . 1 . . 1 . . . . 2 Communications Jammed 8 | . . . . . . . . . . . . 8 . . . Distress Signals 8 | . . . . . . . . . . . . 8 . . . Times Spotted 149 | . . 27 3 . . 4 27 7 5 12 1 6 9 6 42 Peak Tracking Total 15 | . . 4 3 . 1 4 11 5 3 6 1 5 7 3 15 Tactical Retreats 28 | . . 5 . . . . 7 2 3 . . 1 . 2 8 Traps | -11 -10 -10 -7 -7 -5 -5 -5 -5 -5 -5 -4 -4 -3 -3 -3 ------- Run | Yrd Mat Sub Rec Scr Fac Was Fac Upp Upp War Pro Fac Res Qua Frg Traps Triggered 6 | . . 1 . . 1 . . . . . . . . . 4 Indirectly . | . . . . . . . . . . . . . . . . Trap Hack Attempts 4 | . . . . . . . . . . . . . . . 4 Triggered . | . . . . . . . . . . . . . . . . Disarmed . | . . . . . . . . . . . . . . . . Reprogrammed 1 | . . . . . . . . . . . . . . . 1 Reused 1 | . . . . . . . . . . . . . . . 1 Traps Extracted . | . . . . . . . . . . . . . . . . Installed . | . . . . . . . . . . . . . . . . Triggered 1 | . . . . . . . . . . . . . . . 1 Machines | -11 -10 -10 -7 -7 -5 -5 -5 -5 -5 -5 -4 -4 -3 -3 -3 ---------- Run | Yrd Mat Sub Rec Scr Fac Was Fac Upp Upp War Pro Fac Res Qua Frg Machines Disabled 13 | . . 2 . . 3 . 1 . . . . 1 . 5 1 Max in Single Turn 1 | . . 1 . . 1 . 1 . . . . 1 . 1 1 Garrison Access 2 | . . . . . . . 1 . . . . . 1 . . Machines Repaired . | . . . . . . . . . . . . . . . . Machines Dismantled . | . . . . . . . . . . . . . . . . Machines Sabotaged . | . . . . . . . . . . . . . . . . Overloaded Fab Kills . | . . . . . . . . . . . . . . . . Hacking | -11 -10 -10 -7 -7 -5 -5 -5 -5 -5 -5 -4 -4 -3 -3 -3 --------- Run | Yrd Mat Sub Rec Scr Fac Was Fac Upp Upp War Pro Fac Res Qua Frg Machines Accessed 74 | . . 3 7 11 6 . 9 . 1 6 . 4 7 9 11 Terminals 33 | . . . 4 . 4 . 3 . . . . 2 5 9 6 Fabricators 7 | . . . . . 1 . 2 . . . . 1 . . 3 Repair Stations 2 | . . . . . 1 . 1 . . . . . . . . Recycling Units 4 | . . . 1 . . . 3 . . . . . . . . Scanalyzers 5 | . . . . . . . . . . . . 1 2 . 2 Garrison Access . | . . . . . . . . . . . . . . . . Total Hacks 235 | . . 7 38 73 9 . 23 . 1 11 . 14 14 19 26 Successful 169 | . . 7 32 73 3 . 8 . 1 11 . 8 5 11 10 Failed 66 | . . . 6 . 6 . 15 . . . . 6 9 8 16 Catastrophic 11 | . . . 1 . 3 . 4 . . . . . . . 3 Database Lockouts . | . . . . . . . . . . . . . . . . Manual 34 | . . . 3 . 3 . 8 . . . . 3 4 11 2 Terminals 74 | . . . 13 . 5 . 5 . . . . 5 11 19 16 Fabricators 12 | . . . . . 1 . 2 . . . . 3 . . 6 Repair Stations 8 | . . . . . 3 . 5 . . . . . . . . Recycling Units 12 | . . . 1 . . . 11 . . . . . . . . Scanalyzers 13 | . . . . . . . . . . . . 6 3 . 4 Garrison Access . | . . . . . . . . . . . . . . . . Terminal Hacks 146 | . . 7 32 73 1 . 1 . 1 11 . 3 1 10 6 Record 115 | . . 5 26 66 . . . . . 9 . . . 3 6 Part Schematic 1 | . . . 1 . . . . . . . . . . . . Robot Analysis 6 | . . . . 6 . . . . . . . . . . . Prototype ID Bank 1 | . . . 1 . . . . . . . . . . . . Open Door 5 | . . 1 . . . . . . 1 2 . . . 1 . Open DSF 3 | . . . . . 1 . 1 . . . . 1 . . . Level Access Points 2 | . . . . . . . . . . . . 1 . 1 . Branch Access Points 2 | . . . . . . . . . . . . . 1 1 . Terminal Index 2 | . . . 1 . . . . . . . . . . 1 . Recycling Unit Index 1 | . . . . . . . . . . . . . . 1 . Unreport Threat 3 | . . . . . . . . . . . . 1 . 2 . Zone Layout 3 | . . . 3 . . . . . . . . . . . . Proto ID Catalog 1 | . . . . 1 . . . . . . . . . . . Release Object 1 | . . 1 . . . . . . . . . . . . . Fabricator Hacks 4 | . . . . . . . . . . . . 2 . . 2 Load Schematic 2 | . . . . . . . . . . . . 1 . . 1 Build 2 | . . . . . . . . . . . . 1 . . 1 Repair Station Hacks 4 | . . . . . 2 . 2 . . . . . . . . Scan Component 2 | . . . . . 1 . 1 . . . . . . . . Repair 2 | . . . . . 1 . 1 . . . . . . . . Recycling Unit Hacks 2 | . . . . . . . 2 . . . . . . . . Retrieve Matter 1 | . . . . . . . 1 . . . . . . . . Retrieve Components 1 | . . . . . . . 1 . . . . . . . . Scanalyzer 8 | . . . . . . . . . . . . 3 3 . 2 Retrieve Study 8 | . . . . . . . . . . . . 3 3 . 2 Garrison Access Hacks . | . . . . . . . . . . . . . . . . Unauthorized Hacks 5 | . . . . . . . 3 . . . . . 1 1 . Terminals 2 | . . . . . . . . . . . . . 1 1 . Assimilate 2 | . . . . . . . . . . . . . 1 1 . Fabricators . | . . . . . . . . . . . . . . . . Repair Stations . | . . . . . . . . . . . . . . . . Recycling Units 3 | . . . . . . . 3 . . . . . . . . Recyclers 1 | . . . . . . . 1 . . . . . . . . Fedlink 2 | . . . . . . . 2 . . . . . . . . Scanalyzers . | . . . . . . . . . . . . . . . . Garrison Access . | . . . . . . . . . . . . . . . . Data Cores Recovered . | . . . . . . . . . . . . . . . . Used . | . . . . . . . . . . . . . . . . Hacking Detections 42 | . . . 5 . 4 . 8 . . . . 4 6 5 10 Full Trace Events 8 | . . . . . 1 . . . . . . 1 1 1 4 Feedback Events 2 | . . . . . . . . . . . . . . . 2 Hackware Fried 2 | . . . . . . . . . . . . . . . 2 Feedback Blocked . | . . . . . . . . . . . . . . . . Robot Schematics Acquired 2 | . . . . . . . . . . . . . . . 2 Robots Built . | . . . . . . . . . . . . . . . . Authchips . | . . . . . . . . . . . . . . . . Time . | . . . . . . . . . . . . . . . . Total Robot Build Rating . | . . . . . . . . . . . . . . . . Part Schematics Acquired 3 | . . . 1 . . . . . . . . . . . 2 Parts Built 2 | . . . . . . . . . . . . 2 . . . Authchips . | . . . . . . . . . . . . . . . . Time 93 | . . . . . . . . . . . . 47 . . 46 Total Part Build Rating 10 | . . . . . . . . . . . . 10 . . . Part Studies Acquired 8 | . . . . . . . . . . . . 3 3 . 2 Parts Repaired 2 | . . . . . 1 . 1 . . . . . . . . Time 139 | . . . . . 44 . 95 . . . . . . . . Parts Recycled . | . . . . . . . . . . . . . . . . Recycled Matter . | . . . . . . . . . . . . . . . . Retrieved Matter . | . . . . . . . . . . . . . . . . Retrieved Components . | . . . . . . . . . . . . . . . . Parts Scanalyzed . | . . . . . . . . . . . . . . . . Part Schematics Acquired . | . . . . . . . . . . . . . . . . Parts Damaged . | . . . . . . . . . . . . . . . . Bothacking | -11 -10 -10 -7 -7 -5 -5 -5 -5 -5 -5 -4 -4 -3 -3 -3 ------------ Run | Yrd Mat Sub Rec Scr Fac Was Fac Upp Upp War Pro Fac Res Qua Frg Used RIF Installer . | . . . . . . . . . . . . . . . . Robots Hacked 2 | . . . 1 1 . . . . . . . . . . . Non-combat 1 | . . . 1 . . . . . . . . . . . . Combat 1 | . . . . 1 . . . . . . . . . . . Robot Hacks Applied 3 | . . . 2 1 . . . . . . . . . . . parse_system 2 | . . . 1 1 . . . . . . . . . . . no_distress 1 | . . . 1 . . . . . . . . . . . . Relay Couplers Released 2 | . . . . . . . . . . . . . 2 . . Machine Destruction 2 | . . . . . . . . . . . . . 2 . . Fabnet Peak Effective % . | . . . . . . . . . . . . . . . . Robots Rewired 7 | . . . 7 . . . . . . . . . . . . Allies Hacked . | . . . . . . . . . . . . . . . . Hacks Repelled . | . . . . . . . . . . . . . . . . Allies | -11 -10 -10 -7 -7 -5 -5 -5 -5 -5 -5 -4 -4 -3 -3 -3 -------- Run | Yrd Mat Sub Rec Scr Fac Was Fac Upp Upp War Pro Fac Res Qua Frg Total Allies 10 | . . . 7 1 . 1 . . . . . . 1 . . Largest Group 6 | . . . 5 6 6 2 . . . . . . 1 . . Highest-Rated Group 152 | . . . 99 152 152 58 . . . . . . 26 . . Highest-Rated Ally 53 | . . . 32 53 53 53 . . . . . . 26 . . Total Orders 1 | . . . . . . . . . . . . . 1 . . STAY 1 | . . . . . . . . . . . . . 1 . . Ally Attacks 26 | . . . 1 . 17 8 . . . . . . . . . Total Damage 899 | . . . 15 . 740 144 . . . . . . . . . Kills 4 | . . . . . 4 . . . . . . . . . . Allies Corrupted . | . . . . . . . . . . . . . . . . Allies Melted 2 | . . . . . . . . . . 2 . . . . . Intel | -11 -10 -10 -7 -7 -5 -5 -5 -5 -5 -5 -4 -4 -3 -3 -3 ------- Run | Yrd Mat Sub Rec Scr Fac Was Fac Upp Upp War Pro Fac Res Qua Frg Active Infowar (turns) 5147 | 52 75 1293 . 18 515 145 905 . 201 582 66 110 450 297 438 Optics 797 | . . . . . . . . . 45 582 66 104 . . . Sensors 2643 | . . . . . 418 145 892 . . . . 7 450 297 434 Terrain 2948 | 28 75 1293 . . 515 145 892 . . . . . . . . Structural 167 | . . . . 18 . . . . 149 . . . . . . Seismic 1402 | 52 75 1275 . . . . . . . . . . . . . Decoding 846 | . . . . . . . . . 126 582 66 72 . . . Jamming 1257 | . . . . . . . 13 . . 128 48 110 450 278 230 Robot Analysis Total 6 | . . . . 6 . . . . . . . . . . . Derelict Logs Recovered 4 | . . 1 . 2 . . . . 1 . . . . . . Drone Launches . | . . . . . . . . . . . . . . . . Drone Recoveries . | . . . . . . . . . . . . . . . . Decoded 0b10 Intel 3 | . . . . . . . . . . . . 3 . . . Garrisons 1 | . . . . . . . . . . . . 1 . . . Patrols 1 | . . . . . . . . . . . . 1 . . . Reinforcements 1 | . . . . . . . . . . . . 1 . . . Exploration | -11 -10 -10 -7 -7 -5 -5 -5 -5 -5 -5 -4 -4 -3 -3 -3 ------------- Run | Yrd Mat Sub Rec Scr Fac Was Fac Upp Upp War Pro Fac Res Qua Frg Turns Passed 13953 | 240 75 3871 792 5094 515 145 945 88 202 582 66 110 450 297 481 Spaces Moved 11340 | 112 19 1995 356 3187 398 128 967 218 425 880 232 331 515 648 929 Core 554 | 10 . . . 128 . . . . 167 249 . . . . . Treads 5578 | 102 19 1995 356 3059 47 . . . . . . . . . . Legs . | . . . . . . . . . . . . . . . . Wheels 821 | . . . . . 351 128 342 . . . . . . . . Hover 710 | . . . . . . . . . . 422 . . . . 288 Flight 3677 | . . . . . . . 625 218 258 209 232 331 515 648 641 Fastest Speed 20 | 50 160 160 160 50 115 100 28 40 40 23 23 23 20 24 28 Average Speed 104 | 150 160 160 197 153 122 111 65 40 44 57 23 23 24 25 37 Slowest Speed 350 | 160 160 260 260 350 240 115 120 40 100 156 23 23 27 28 120 Overloaded Moves . | . . . . . . . . . . . . . . . . Propulsion Burnouts . | . . . . . . . . . . . . . . . . Robots Hopped . | . . . . . . . . . . . . . . . . Potential Cave-ins 11 | . . . . . . . 5 . . . . . . 6 . Cave-ins Triggered 2 | . . . . . . . 1 . . . 1 . . . . Exploration Rate (%) 45 | 8 6 81 53 95 10 89 25 52 69 85 56 10 13 45 37 Regions Visited 15 Branch Regions 9 Pre-discovered Areas 11 | . . 1 . 9 . . 1 . . . . . . . . Known Exits Taken 6 | . . . . . . . 1 1 . . 1 1 1 1 . Unknown Exits Taken 7 | 1 1 1 1 1 . . . . 1 1 . . . . . Scrap Searched 13 | . . 3 . 5 . . . 1 2 . 2 . . . . Spaces Dug 38 | . . . 3 . 1 . 16 . . . 4 2 3 4 5 Terrain Destroyed 47 | . . 9 3 . 1 . 16 . . . 4 2 3 4 5 Melee 38 | . . . 3 . 1 . 16 . . . 4 2 3 4 5 Projectile 6 | . . 6 . . . . . . . . . . . . . AOE 3 | . . 3 . . . . . . . . . . . . . Terrain Rammed . | . . . . . . . . . . . . . . . . Walls Destroyed . | . . . . . . . . . . . . . . . . Machines Disabled . | . . . . . . . . . . . . . . . . Actions | -11 -10 -10 -7 -7 -5 -5 -5 -5 -5 -5 -4 -4 -3 -3 -3 --------- Run | Yrd Mat Sub Rec Scr Fac Was Fac Upp Upp War Pro Fac Res Qua Frg Total 13157 | 150 64 2537 428 3398 419 130 1221 218 439 953 237 351 827 755 1030 Wait 1202 | . 46 410 22 104 . . 190 1 . 38 2 . 303 57 29 Move 11326 | 111 18 1994 355 3186 398 127 966 217 424 879 231 330 514 647 929 Hop . | . . . . . . . . . . . . . . . . Pick Up 78 | 5 . 8 9 31 6 1 5 . . 4 . 1 . 6 2 Fast Attach 83 | 7 . 2 1 13 4 1 6 . 7 11 . 6 2 13 10 Attach 33 | 1 . 4 3 1 5 1 5 . 1 5 . 1 . 3 3 Detach 25 | 1 . 2 . 2 . . 3 . 5 4 . 4 . 2 2 Swap 54 | 1 . 11 10 25 2 . 2 . . 2 . . . 1 . Drop 80 | 1 . 7 2 35 2 . 7 . 2 10 . 1 . 11 2 Fire 119 | 23 . 90 4 . . . . . . . . . . . 2 Melee 113 | . . . 21 1 2 . 37 . . . 4 8 8 15 17 Ram . | . . . . . . . . . . . . . . . . Kick . | . . . . . . . . . . . . . . . . Crush . | . . . . . . . . . . . . . . . . Escape Stasis 30 | . . . . . . . . . . . . . . . 30 Rewire 1 | . . . 1 . . . . . . . . . . . . Trap 4 | . . . . . . . . . . . . . . . 4 Miscellaneous 9 | . . 9 . . . . . . . . . . . . . Route ------- -11/Scrapyard -10/Materials -10/Subcaves (discovered 3 exits: [*Mat x2] / *Rec) -7/Recycling (discovered 2 exits: *Fac / *Scr) -7/Scraptown (discovered 2 exits: *Fac x2) -5/Factory (discovered 4 exits: *Fac / Upp x2 / Ext) -5/Waste -5/Factory (discovered 3 exits: Fac / *Upp / Ext) -5/Upper Caves -5/Upper Caves (discovered 2 exits: Fac / *War) -5/Warlord -4/Proximity Caves -4/Factory (discovered 4 exits: *Res x4) -3/Research (discovered 4 exits: Res / Arm / *Qua x2) -3/Quarantine (discovered 2 exits: *Sec / *Frg) -3/Protoforge (discovered 1 exit: *Res) History --------- Turn | Location | Event 19 | -11/Scrapyard | Discovered new exit (range 15) 241 | -11/Scrapyard | Entered Materials 301 | -10/Materials | Discovered new exit (range 6) 316 | -10/Materials | Entered Subcaves 318 | -10/Subcaves | Build established: Mutant 361 | -10/Subcaves | Learned 2 Materials zone layouts 370 | -10/Subcaves | Ambushed by Subdwellers from Twisted Machinery 803 | -10/Subcaves | Discovered new exit (range 9) 882 | -10/Subcaves | Released subatomizers from SUBCON Basin 1791 | -10/Subcaves | A swath of the cavern ceiling suddenly collapsed 1963 | -10/Subcaves | Discovered new exit (range 15) 2915 | -10/Subcaves | Visited Clippyterm 2920 | -10/Subcaves | Learned location of Deep Caves (-6) 2920 | -10/Subcaves | Learned Factory emergency access door positions 2954 | -10/Subcaves | A swath of the cavern ceiling suddenly collapsed 3343 | -10/Subcaves | Shifting Twisted Machinery released Spk. Treads 3351 | -10/Subcaves | Shifting Twisted Machinery released Battle Cannon 4006 | -10/Subcaves | Discovered new exit (range 9) 4037 | -10/Subcaves | Core integrity fell below 50% 4187 | -10/Subcaves | Entered Recycling 4610 | -7/Recycling | Discovered new exit (range 13) 4905 | -7/Recycling | Scanned before Scraplab entrance 4929 | -7/Recycling | Entered Scraplab 4957 | -7/Recycling | Discovered new exit (range 2) 4979 | -7/Recycling | Entered Scraptown 4979 | -7/Scraptown | Accompanied by 5 allies 5023 | -7/Scraptown | Heard Great Nut preacher, LISTEN AND RECITE! 5083 | -7/Scraptown | Build established: Commander-Mutant 6212 | -7/Scraptown | Scanned Subdweller tech in exchange for log data 6218 | -7/Scraptown | Learned location of Testing (-2) 6266 | -7/Scraptown | Discovered new exit (range 7) 6461 | -7/Scraptown | Visited The Evicted 6565 | -7/Scraptown | Visited Cave Peace 6623 | -7/Scraptown | Visited SPCMW 6659 | -7/Scraptown | Visited Supply Room 6716 | -7/Scraptown | Visited Artisan Demo Area 6888 | -7/Scraptown | Visited Cyclists 6945 | -7/Scraptown | Visited UFD Registry 6945 | -7/Scraptown | Registered with UFD as "Technosys" 6982 | -7/Scraptown | Entered Cyclist Reading Room 6989 | -7/Scraptown | Learned location of Zion (-6) 7027 | -7/Scraptown | Visited IN-MT5's Study 7184 | -7/Scraptown | Guru changed UFD alias to "Armorguard" 7613 | -7/Scraptown | Visited Abandonware Association 7646 | -7/Scraptown | Learned abandonware demo "KABOOM.EXE" 7685 | -7/Scraptown | Visited Analyses Database 7723 | -7/Scraptown | Visited Curators Association 8192 | -7/Scraptown | Visited Science Guys 8275 | -7/Scraptown | Visited DA-N13 Charitable Foundation 8283 | -7/Scraptown | Found DCF Scrap (29 items) 8443 | -7/Scraptown | Visited Observation Area 8519 | -7/Scraptown | Visited LU-1G1's Boring Crew 8623 | -7/Scraptown | Discovered new exit (range 5) 8818 | -7/Scraptown | Visited Botcube Research 8840 | -7/Scraptown | Found Botcube 9304 | -7/Scraptown | Botcube activated 9322 | -7/Scraptown | Botcube completed mutation into legged form, armed with 2 melee weapons. 9406 | -7/Scraptown | Visited Infowarlord's Domain 9427 | -7/Scraptown | Found Exp. Terrain Scanner 9466 | -7/Scraptown | Visited Cartography Club 9521 | -7/Scraptown | Released all parts (7) 9533 | -7/Scraptown | Found Surveybot 17 Chip 9551 | -7/Scraptown | Learned location of Storage (-7) 9551 | -7/Scraptown | Learned location of Recycling (-7) 9551 | -7/Scraptown | Learned location of Upper Caves (-4) 9551 | -7/Scraptown | Learned 16 Materials zone layouts 9551 | -7/Scraptown | Learned 8 Factory zone layouts 9551 | -7/Scraptown | Learned 12 Lower Caves zone layouts 9551 | -7/Scraptown | Learned 16 Lower Caves zone layouts 9551 | -7/Scraptown | Learned 20 Lower Caves zone layouts 9551 | -7/Scraptown | Learned 20 Upper Caves zone layouts 9551 | -7/Scraptown | Learned 24 Proximity Caves zone layouts 9551 | -7/Scraptown | Learned 4 Hub_04(d) zone layouts 9551 | -7/Scraptown | Learned Factory emergency access door positions 9551 | -7/Scraptown | Learned location of 1 exit from Factory 9551 | -7/Scraptown | Learned location of 1 exit from Upper Caves 9551 | -7/Scraptown | Learned location of 3 exits from Proximity Caves 9565 | -7/Scraptown | Found Deep Structural Scanner 9932 | -7/Scraptown | Met Optimus 9932 | -7/Scraptown | Accepted into 0bPrime 10073 | -7/Scraptown | Entered Factory 10073 | -5/Factory | Accompanied by 6 allies 10073 | -5/Factory | Evolved 10 slots: Power x1, Propulsion x3, Utility x5, Weapon x1 10074 | -5/Factory | Identified exit to Upper Caves 10075 | -5/Factory | Identified exit to Factory 10076 | -5/Factory | Identified exit to Extension 10178 | -5/Factory | Lost 4 allies 10348 | -5/Factory | Repaired Med. Treads 10466 | -5/Factory | Build established: Derelict-Assassin 10588 | -5/Factory | Sucked down chute 10588 | -5/Factory | Entered Waste 10589 | -5/Waste | Met a frightened Derelict 10603 | -5/Waste | EMP discharged 10609 | -5/Waste | Spotted C-40 Crusher 10624 | -5/Waste | Spotted C-40 Crusher 10624 | -5/Waste | Spotted C-40 Crusher 10628 | -5/Waste | 2 allies followed down the chute 10628 | -5/Waste | Spotted C-40 Crusher 10649 | -5/Waste | Crushed by Compactor (1 part destroyed, 2 dropped) 10650 | -5/Waste | Crushed by Compactor (1 part destroyed) 10653 | -5/Waste | Crushed by Compactor (0 parts destroyed, 1 dropped) 10679 | -5/Waste | Lost 3 allies 10681 | -5/Waste | Lost 3 parts (1p1n1w) 10694 | -5/Waste | Discovered new exit (range 30) 10703 | -5/Waste | EMP discharged 10703 | -5/Waste | System corruption reached 10% 10732 | -5/Waste | Identified exit to Factory 10733 | -5/Waste | Entered Factory 10781 | -5/Factory | Discovered exit to Factory (range 29) 10877 | -5/Factory | Repaired Broken Q-thruster 10943 | -5/Factory | Build established: Assassin 11380 | -5/Factory | Discovered exit to Upper Caves (range 29) 11501 | -5/Factory | Loaded intel: 8 recycling unit locations 11576 | -5/Factory | Discovered exit to Extension (range 26) 11593 | -5/Factory | Learned location of Protoforge (-3) 11620 | -5/Factory | Build established: Scout 11625 | -5/Factory | Crushed by falling debris 11678 | -5/Factory | Entered Upper Caves 11679 | -5/Upper Caves | Identified exit to Upper Caves 11703 | -5/Upper Caves | Lost 9 parts (4n4u1w) 11766 | -5/Upper Caves | Entered another Upper Caves area 11768 | -5/Upper Caves | Discovered exit to Factory (range 7) 11904 | -5/Upper Caves | Spotted B-75 Beast 11905 | -5/Upper Caves | Core integrity fell below 50% 11916 | -5/Upper Caves | Attracted the attention of an 0b10 checkpoint 11922 | -5/Upper Caves | Build established: Mutant 11933 | -5/Upper Caves | Learned Factory stockpile data 11966 | -5/Upper Caves | Discovered new exit (range 6) 11968 | -5/Upper Caves | Entered Warlord 11985 | -5/Warlord | System corruption cleaned by Quarantine Array 12059 | -5/Warlord | Visited the Vortex Lab 12065 | -5/Warlord | Found Prototype Energy Cannon 12065 | -5/Warlord | Identified Vortex Driver 12068 | -5/Warlord | Found Prototype Launcher 12068 | -5/Warlord | Identified Vortex Catalyst Activator 12080 | -5/Warlord | Warlord's base attacked by MAIN.C 12243 | -5/Warlord | Learned Quarantine security intel 12243 | -5/Warlord | Learned Armory fabricator intel 12244 | -5/Warlord | Learned 4 Armory zone layouts 12244 | -5/Warlord | Learned 4 Research zone layouts 12244 | -5/Warlord | Learned 4 Quarantine zone layouts 12245 | -5/Warlord | Learned Testing stockpile data 12299 | -5/Warlord | Rebuked by Warlord 12430 | -5/Warlord | Warlord forces counterattacked 12434 | -5/Warlord | Spotted B-86 Titan 12438 | -5/Warlord | Spotted B-75 Beast 12500 | -5/Warlord | Lost 7 allies 12507 | -5/Warlord | Spotted B-86 Titan 12533 | -5/Warlord | Opened side exit 12546 | -5/Warlord | Discovered new exit (range 18) 12550 | -5/Warlord | Entered Proximity Caves 12591 | -4/Proximity Caves | Crushed by falling debris 12612 | -4/Proximity Caves | Spotted B-86 Titan 12616 | -4/Proximity Caves | Entered Factory 12616 | -4/Factory | Evolved 2 slots: Propulsion x1, Utility x1 12617 | -4/Factory | Identified exit to Research 12711 | -4/Factory | Fabricated Adv. Signal Interpreter? 12726 | -4/Factory | Entered Research 12726 | -3/Research | Evolved 2 slots: Utility x2 12727 | -3/Research | Identified exit to Armory 12728 | -3/Research | Identified exit to Research 12771 | -3/Research | Build established: Scavenger-Sprinter 12907 | -3/Research | Identified exit to Quarantine 13176 | -3/Research | Entered Quarantine 13212 | -3/Quarantine | Found Alien Artifact 13212 | -3/Quarantine | Identified Subatomic Replicator 13218 | -3/Quarantine | Used Subatomic Replicator to replicate Adv. Gravity Neutralizer 13302 | -3/Quarantine | Found Alien Artifact 13302 | -3/Quarantine | Identified Terrabomb 13302 | -3/Quarantine | Used Terrabomb 13315 | -3/Quarantine | Found Sigix Corpse 13317 | -3/Quarantine | Found Sigix Corpse 13321 | -3/Quarantine | Spotted Alpha 7 13326 | -3/Quarantine | Found Alien Launcher 13326 | -3/Quarantine | Identified Sigix Terminator 13360 | -3/Quarantine | Found Alien Artifact 13360 | -3/Quarantine | Identified Core Reset Matrix 13360 | -3/Quarantine | Used Core Reset Matrix 13364 | -3/Quarantine | Detected hypermatrix surge 13364 | -3/Quarantine | Sensed 13 artifacts in vicinity 13451 | -3/Quarantine | Spotted Fortress 13471 | -3/Quarantine | Discovered new exit (range 6) 13471 | -3/Quarantine | Discovered new exit (range 7) 13472 | -3/Quarantine | Identified exit to Section 7 13473 | -3/Quarantine | Identified exit to Protoforge 13473 | -3/Quarantine | Entered Protoforge 13474 | -3/Protoforge | Sensed 2 artifacts in vicinity 13495 | -3/Protoforge | Spotted B-86 Titan 13499 | -3/Protoforge | Superfortress began startup sequence 13560 | -3/Protoforge | Discovered exit to Research (range 16) 13561 | -3/Protoforge | Spotted Hotshot 13563 | -3/Protoforge | Lost 4 parts (3n1w) 13577 | -3/Protoforge | System Shield fried by hacking feedback 13651 | -3/Protoforge | Spotted Hotshot 13661 | -3/Protoforge | Spotted Hotshot 13730 | -3/Protoforge | Spotted Hotshot 13823 | -3/Protoforge | Spotted V071-p 13854 | -3/Protoforge | Spotted Decapitator 13854 | -3/Protoforge | Spotted Decapitator 13854 | -3/Protoforge | Spotted V628-k 13854 | -3/Protoforge | Spotted V377-m 13855 | -3/Protoforge | Spotted Decapitator 13861 | -3/Protoforge | Scanned by Researcher 13864 | -3/Protoforge | Found Prototype Processor 13864 | -3/Protoforge | Identified Cep. Projectile Intercept Suite 13867 | -3/Protoforge | Found Cep. Projectile Intercept Suite 13909 | -3/Protoforge | Core integrity fell below 50% 13920 | -3/Protoforge | System corruption reached 10% 13921 | -3/Protoforge | Core integrity fell below 20% 13945 | -3/Protoforge | Imp. Hacking Suite fried by hacking feedback 13954 | -3/Protoforge | Destroyed by Decapitator with Experimental Terror Saw Last Messages --------------- >>Load(S-43 Plague) Uploading S-43 Plague schematic... Loaded successfully: S-43 Plague Tier: 8 Time: 68 Initiate build sequence. Feedback: Imp. Hacking Suite fried. 13945_ ALERT: Suspicious activity at Fabricator F001. Dispatching Investigation squad. 13947_ Imp. Melee Analysis Suite severed. 13948_ Connecting with Fabricator... 13948_ ALERT: Suspicious activity at Fabricator F003. Dispatching Investigation squad. 13950_ Cep. Projectile Intercept Suite severed. 13951_ System corrupted: Energy discharge (-22). 13951_ Connecting with Fabricator... >>Build Building Centrium Leg... ETC: 46 Map ----- +----------------------------------------------------+ | ###???# #??????????????????????????????????????? | | ??????# #??????????????????????????????????????? | | ??????# #??????????????????????????????????????? | | ??????# #??????????????????????????????????????? | | ??????# #??????????????????????????????????????? | | ??????# #??????????????????????????????????????? | | ####### *###############????????????????????????? | | #????????????????????????? | | """ " #?#######????????????????? | | " """"" #?#"""""#????????????????? | | """" #?#"""""#????????????????? | | " ###"" F"###??????????????? | | """ " " " #"" ""#??????????????? | | """" " "" "" "" #" "####???????????? | | " " "" "# """#???????????? | | " "" # """#???????????? | | " "" "" + """#???????????? | | """ "" " + F"#???????????? | | " "" """ # """#???????????? | | """ "" "" " """ "# "" #???????????? | | ? "" ?" "# ####???????????? | | ? " # #####??????????? | | ?? """ "" " "# """ #??????????? | | ???" ?" " "" # """"#??????????? | | ???? ? " " " " / "F""#??????????? | | ???????? """ " /@ ""#??????????? | | ??????? " " " # c """#??????????? | | ???????? "" "" "" "# "" #??????????? | | ??????????" "#" "#####??????????? | | ??????????? " "#"" c ""#??????????????? | | ???????????? " " " ?###"F ""###??????????????? | | ???????????? "????? ? ???#"""""#????????????????? | | ??????????????????????????#"""""#????????????????? | | ??????????????????????????#######????????????????? | | ?????????????????????????????????????????????????? | | ?????????????????????????????????????????????????? | | ?????????????????????????????????????????????????? | | ?????????????????????????????????????????????????? | | ?????????????????????????????????????????????????? | | ?????????????????????????????????????????????????? | | ?????????????????????????????????????????????????? | | ?????????????????????????????????????????????????? | | ?????????????????????????????????????????????????? | | ?????????????????????????????????????????????????? | | ?????????????????????????????????????????????????? | | ?????????????????????????????????????????????????? | | ?????????????????????????????????????????????????? | | ?????????????????????????????????????????????????? | | ?????????????????????????????????????????????????? | | ?????????????????????????????????????????????????? | +----------------------------------------------------+ Best States ------------- Heat Dissipation 67 Energy Generation 29 Energy Capacity 2700 Matter Stores 300 Matter Capacity 300 Sight Range 22 Robot Scan Range 16 Terrain Scan Range 30 Terrain Scan Density 1210 Jamming Range 14 Power Amplification 30 Additional Mass Support 16 Corruption Containment 8 Armor Coverage 800 Weapon Cycling 15 Phase Shifting 10 Evasion (%) 68 Melee Accuracy 6 Launcher Accuracy 60 Target Analysis 8 Recoil Reduction 2 Offensive Hacking 22 Defensive Hacking 12 Item Schematics ----------------- Cld. Field Propulsion Drive | -3/Protoforge | Archive Centrium Heavy Armor Plating | -3/Protoforge | Archive Robot Schematics ------------------ K-01 Serf | -3/Protoforge | Archive S-43 Plague | -3/Protoforge | Archive Fabricated ------------ Adv. Signal Interpreter | x2 | -4/Factory Repaired ---------- Med. Treads | 36% | -5/Factory Q-thruster | 15% | -5/Factory | Broken Studied --------- Impulse Thruster Array | -3/Protoforge | Hacked Imp. Datajack | -3/Protoforge | Hacked Alien Tech Used ----------------- Subatomic Replicator Terrabomb Sigix Terminator Core Reset Matrix Achievements -------------- Alien Roots Frankenstein Longdome?! Nope Physics Protects Rockin' Loadout Super-what Now? Challenges ------------ None Game ------ Seed SixIonicChainsword Manual? 0 Play Time 04:11:22 Cumulative 42.4 hours Start 2025.11.24 @ 20:13:35 End 2025.11.25 @ 01:41:54 Sessions 1 Manual Loads 0 Difficulty Rogue Special Mode None Game No. 32 Rogue 32 Adventurer 0 Explorer 0 Win Type - Total 1 Types 1/0/0/0/0/0/0/0/0/0 Lore% 39 Gallery% 36 Achievement% 31 Wizard Run 0 Options --------- Layout 0 ASCII 0 Keyboard 1 Movement Arrows Keybinds 0 Fullscreen 2 Font 18/SmallcapsGlow Map View 76x50 Zoom Use 0% Tactical HUD 1 Map Filters NONE Filters NONE Steam 1 RUN: 69522029-5d78-4066-946e-a94d93ec02f4